[Event "Titled Tuesday Blitz July 25 Late 2023"]
[White "Naroditsky, Daniel"]
[Black "Hansen, Eric"]
[WhiteFideId "2026961"]
[BlackFideId "2606771"]
[WhiteElo "3144"]
[BlackElo "2834"]
[Result "1-0"]
[Round "4"]
[TimeControl "180+2"]
[Date "2023.07.25"]
[WhiteClock "0:00:06"]
[BlackClock "0:00:00"]
[Board "22"]

1. e4 {[%clk 0:03:00]}  c6 {[%clk 0:02:56]} 2. d4 {[%clk 0:02:53]}  d5 {[%clk 0:02:56]} 3. exd5 {[%clk 0:02:50]}  cxd5 {[%clk 0:02:57]} 4. Nf3 {[%clk 0:02:51]}  Nf6 {[%clk 0:02:55]} 5. Ne5 {[%clk 0:02:50]}  Nc6 {[%clk 0:02:54]} 6. c3 {[%clk 0:02:48]}  g6 {[%clk 0:02:26]} 7. Bb5 {[%clk 0:02:44]}  Bd7 {[%clk 0:02:26]} 8. Nxd7 {[%clk 0:02:44]}  Nxd7 {[%clk 0:02:21]} 9. O-O {[%clk 0:02:44]}  Bg7 {[%clk 0:02:21]} 10. Re1 {[%clk 0:02:44]}  O-O {[%clk 0:02:22]} 11. Nd2 {[%clk 0:02:25]}  a6 {[%clk 0:02:19]} 12. Bd3 {[%clk 0:02:25]}  e5 {[%clk 0:02:17]} 13. dxe5 {[%clk 0:02:25]}  Ndxe5 {[%clk 0:02:17]} 14. Bf1 {[%clk 0:02:12]}  Re8 {[%clk 0:01:53]} 15. Nb3 {[%clk 0:02:13]}  Qf6 {[%clk 0:01:09]} 16. Be3 {[%clk 0:01:57]}  Nc4 {[%clk 0:01:03]} 17. Qxd5 {[%clk 0:01:39]}  Nxe3 {[%clk 0:01:03]} 18. fxe3 {[%clk 0:01:37]}  Rad8 {[%clk 0:01:03]} 19. Qf3 {[%clk 0:01:38]}  Qe7 {[%clk 0:01:00]} 20. Nd4 {[%clk 0:01:36]}  Ne5 {[%clk 0:01:00]} 21. Qf4 {[%clk 0:01:33]}  h5 {[%clk 0:00:57]} 22. h3 {[%clk 0:01:30]}  Kh7 {[%clk 0:00:57]} 23. Rad1 {[%clk 0:01:29]}  Bh6 {[%clk 0:00:57]} 24. Qf2 {[%clk 0:01:30]}  Rd6 {[%clk 0:00:55]} 25. Bd3 {[%clk 0:00:53]}  Rf6 {[%clk 0:00:52]} 26. Qe2 {[%clk 0:00:51]}  Kg7 {[%clk 0:00:43]} 27. Bc2 {[%clk 0:00:49]}  Qc7 {[%clk 0:00:38]} 28. Bb3 {[%clk 0:00:46]}  Re7 {[%clk 0:00:26]} 29. Bd5 {[%clk 0:00:45]}  Nd7 {[%clk 0:00:24]} 30. e4 {[%clk 0:00:31]}  Qg3 {[%clk 0:00:18]} 31. Qd3 {[%clk 0:00:29]}  Qf2+ {[%clk 0:00:13]} 32. Kh1 {[%clk 0:00:29]}  Ne5 {[%clk 0:00:09]} 33. Qc2 {[%clk 0:00:15]}  Qg3 {[%clk 0:00:07]} 34. Ne2 {[%clk 0:00:16]}  Qh4 {[%clk 0:00:05]} 35. Ng1 {[%clk 0:00:11]}  Ng4 {[%clk 0:00:04]} 36. Nf3 {[%clk 0:00:09]}  Rxf3 {[%clk 0:00:03]} 37. gxf3 {[%clk 0:00:10]}  Qxh3+ {[%clk 0:00:03]} 38. Kg1 {[%clk 0:00:11]}  Qxf3 {[%clk 0:00:02]} 39. Qg2 {[%clk 0:00:11]}  Be3+ {[%clk 0:00:01]} 40. Kh1 {[%clk 0:00:11]}  Nf2+ {[%clk 0:00:02]} 41. Kh2 {[%clk 0:00:11]}  Qxg2+ {[%clk 0:00:03]} 42. Kxg2 {[%clk 0:00:12]}  Nxd1 {[%clk 0:00:03]} 43. Rxd1 {[%clk 0:00:13]}  Bf4 {[%clk 0:00:04]} 44. Kf3 {[%clk 0:00:11]}  Be5 {[%clk 0:00:04]} 45. c4 {[%clk 0:00:10]}  Bb8 {[%clk 0:00:03]} 46. c5 {[%clk 0:00:10]}  a5 {[%clk 0:00:04]} 47. a3 {[%clk 0:00:10]}  Be5 {[%clk 0:00:04]} 48. b4 {[%clk 0:00:10]}  axb4 {[%clk 0:00:05]} 49. axb4 {[%clk 0:00:11]}  Rc7 {[%clk 0:00:05]} 50. Rc1 {[%clk 0:00:10]}  Kh6 {[%clk 0:00:05]} 51. b5 {[%clk 0:00:11]}  Bd4 {[%clk 0:00:04]} 52. c6 {[%clk 0:00:09]}  bxc6 {[%clk 0:00:04]} 53. Rxc6 {[%clk 0:00:07]}  Re7 {[%clk 0:00:01]} 54. b6 {[%clk 0:00:06]}  Be5 {[%clk 0:00:02]} 55. Rc8 {[%clk 0:00:05]}  Kg7 {[%clk 0:00:02]} 56. b7 {[%clk 0:00:06]}  Kf6 {[%clk 0:00:02]} 57. b8=Q {[%clk 0:00:04]}  Bxb8 {[%clk 0:00:02]} 58. Rxb8 {[%clk 0:00:05]}  Kg5 {[%clk 0:00:03]} 59. Rf8 {[%clk 0:00:04]}  f6 {[%clk 0:00:03]} 60. Rg8 {[%clk 0:00:05]}  Ra7 {[%clk 0:00:03]} 61. Bc6 {[%clk 0:00:04]}  Rh7 {[%clk 0:00:01]} 62. Be8 {[%clk 0:00:03]}  Rh6 {[%clk 0:00:02]} 63. Bf7 {[%clk 0:00:04]}  h4 {[%clk 0:00:02]} 64. Kg2 {[%clk 0:00:04]}  h3+ {[%clk 0:00:03]} 65. Kh2 {[%clk 0:00:04]}  Kh5 {[%clk 0:00:02]} 66. Kxh3 {[%clk 0:00:04]}  Kg5+ {[%clk 0:00:03]} 67. Kg3 {[%clk 0:00:04]}  Kh5 {[%clk 0:00:02]} 68. Kf4 {[%clk 0:00:05]}  Kh4 {[%clk 0:00:01]} 69. Rxg6 {[%clk 0:00:05]}  Rxg6 {[%clk 0:00:00]} 70. Bxg6 {[%clk 0:00:06]} 1-0


[Site "https://www.chess.com"]

[Event "Titled Tuesday Blitz July 25 Late 2023"]
[White "Sarana, Alexey"]
[Black "Troff, Kayden"]
[WhiteFideId "24133795"]
[BlackFideId "2047896"]
[WhiteElo "3040"]
[BlackElo "2804"]
[Result "1/2-1/2"]
[Round "4"]
[TimeControl "180+2"]
[Date "2023.07.25"]
[WhiteClock "0:00:04"]
[BlackClock "0:00:13"]
[Board "23"]

1. d4 {[%clk 0:02:54]}  Nf6 {[%clk 0:02:59]} 2. c4 {[%clk 0:02:54]}  g6 {[%clk 0:02:59]} 3. Nc3 {[%clk 0:02:53]}  d5 {[%clk 0:02:59]} 4. Bf4 {[%clk 0:02:50]}  Bg7 {[%clk 0:02:58]} 5. e3 {[%clk 0:02:50]}  O-O {[%clk 0:02:57]} 6. Rc1 {[%clk 0:02:49]}  c5 {[%clk 0:02:45]} 7. dxc5 {[%clk 0:02:44]}  Qa5 {[%clk 0:02:45]} 8. cxd5 {[%clk 0:02:44]}  Rd8 {[%clk 0:02:44]} 9. Bc4 {[%clk 0:02:37]}  Be6 {[%clk 0:02:43]} 10. Qa4 {[%clk 0:01:42]}  Qxa4 {[%clk 0:02:38]} 11. Nxa4 {[%clk 0:01:43]}  Nxd5 {[%clk 0:02:36]} 12. Ne2 {[%clk 0:01:34]}  Nxf4 {[%clk 0:02:20]} 13. Nxf4 {[%clk 0:01:33]}  Bxc4 {[%clk 0:02:18]} 14. Rxc4 {[%clk 0:01:33]}  b5 {[%clk 0:02:17]} 15. cxb6 {[%clk 0:01:28]}  axb6 {[%clk 0:02:17]} 16. Nc3 {[%clk 0:01:03]}  Bxc3+ {[%clk 0:01:36]} 17. bxc3 {[%clk 0:01:04]}  g5 {[%clk 0:01:33]} 18. Nh3 {[%clk 0:00:59]}  Rxa2 {[%clk 0:01:32]} 19. O-O {[%clk 0:00:58]}  h6 {[%clk 0:01:32]} 20. Rb4 {[%clk 0:00:55]}  Rd6 {[%clk 0:01:29]} 21. f4 {[%clk 0:00:51]}  Rdd2 {[%clk 0:01:24]} 22. Nf2 {[%clk 0:00:51]}  Nd7 {[%clk 0:01:21]} 23. Rd4 {[%clk 0:00:41]}  Nc5 {[%clk 0:01:18]} 24. Rxd2 {[%clk 0:00:35]}  Rxd2 {[%clk 0:01:19]} 25. Rb1 {[%clk 0:00:35]}  Rc2 {[%clk 0:01:08]} 26. Ng4 {[%clk 0:00:30]}  h5 {[%clk 0:01:03]} 27. Nh6+ {[%clk 0:00:29]}  Kg7 {[%clk 0:00:59]} 28. fxg5 {[%clk 0:00:29]}  e6 {[%clk 0:00:53]} 29. Rf1 {[%clk 0:00:23]}  f5 {[%clk 0:00:26]} 30. gxf6+ {[%clk 0:00:24]}  Kg6 {[%clk 0:00:26]} 31. f7 {[%clk 0:00:24]}  Nd7 {[%clk 0:00:26]} 32. Ng8 {[%clk 0:00:16]}  Nf8 {[%clk 0:00:25]} 33. Ne7+ {[%clk 0:00:10]}  Kg7 {[%clk 0:00:24]} 34. Nc8 {[%clk 0:00:05]}  Rxc3 {[%clk 0:00:23]} 35. Nxb6 {[%clk 0:00:04]}  Rxe3 {[%clk 0:00:23]} 36. Nc4 {[%clk 0:00:04]}  Re4 {[%clk 0:00:22]} 37. Nd6 {[%clk 0:00:05]}  Rd4 {[%clk 0:00:20]} 38. Ne8+ {[%clk 0:00:05]}  Kh7 {[%clk 0:00:20]} 39. g3 {[%clk 0:00:04]}  Ra4 {[%clk 0:00:16]} 40. Kg2 {[%clk 0:00:04]}  Ra5 {[%clk 0:00:17]} 41. Nd6 {[%clk 0:00:03]}  Rd5 {[%clk 0:00:16]} 42. Ne8 {[%clk 0:00:03]}  Rf5 {[%clk 0:00:15]} 43. Rxf5 {[%clk 0:00:02]}  exf5 {[%clk 0:00:16]} 44. Nd6 {[%clk 0:00:02]}  Kg6 {[%clk 0:00:17]} 45. Kf3 {[%clk 0:00:03]}  Kf6 {[%clk 0:00:17]} 46. Kf4 {[%clk 0:00:03]}  Ng6+ {[%clk 0:00:17]} 47. Ke3 {[%clk 0:00:02]}  Ke6 {[%clk 0:00:16]} 48. Nc4 {[%clk 0:00:02]}  Kxf7 {[%clk 0:00:16]} 49. Kd4 {[%clk 0:00:03]}  Kf6 {[%clk 0:00:16]} 50. Ne3 {[%clk 0:00:02]}  f4 {[%clk 0:00:16]} 51. gxf4 {[%clk 0:00:02]}  Nxf4 {[%clk 0:00:17]} 52. Ke4 {[%clk 0:00:03]}  Ne6 {[%clk 0:00:16]} 53. Nd5+ {[%clk 0:00:04]}  Kg6 {[%clk 0:00:16]} 54. Ke5 {[%clk 0:00:04]}  Ng7 {[%clk 0:00:15]} 55. h4 {[%clk 0:00:05]}  Kf7 {[%clk 0:00:15]} 56. Nf4 {[%clk 0:00:05]}  Ke7 {[%clk 0:00:15]} 57. Nd5+ {[%clk 0:00:03]}  Kf7 {[%clk 0:00:15]} 58. Nf6 {[%clk 0:00:04]}  Kg6 {[%clk 0:00:16]} 59. Nd7 {[%clk 0:00:01]}  Kf7 {[%clk 0:00:13]} 60. Ke4 {[%clk 0:00:01]}  Ke6 {[%clk 0:00:13]} 61. Nc5+ {[%clk 0:00:02]}  Kf6 {[%clk 0:00:13]} 62. Kf4 {[%clk 0:00:03]}  Nf5 {[%clk 0:00:13]} 63. Ne4+ {[%clk 0:00:03]}  Kg6 {[%clk 0:00:13]} 64. Ng3 {[%clk 0:00:03]}  Nxh4 {[%clk 0:00:13]} 65. Nxh5 {[%clk 0:00:04]} 1/2-1/2


[Site "https://www.chess.com"]

[Event "Titled Tuesday Blitz July 25 Late 2023"]
[White "Mekhitarian, Krikor Sevag"]
[Black "Bortnyk, Olexandr"]
[WhiteFideId "2107660"]
[BlackFideId "14120828"]
[WhiteElo "2772"]
[BlackElo "3010"]
[Result "0-1"]
[Round "4"]
[TimeControl "180+2"]
[Date "2023.07.25"]
[WhiteClock "0:00:11"]
[BlackClock "0:02:29"]
[Board "24"]

1. Nf3 {[%clk 0:03:00]}  Nf6 {[%clk 0:03:00]} 2. c4 {[%clk 0:03:00]}  b6 {[%clk 0:03:00]} 3. Nc3 {[%clk 0:02:55]}  Bb7 {[%clk 0:03:01]} 4. d4 {[%clk 0:02:52]}  g6 {[%clk 0:03:02]} 5. Qc2 {[%clk 0:02:52]}  Bg7 {[%clk 0:03:03]} 6. e4 {[%clk 0:02:53]}  O-O {[%clk 0:03:04]} 7. Be2 {[%clk 0:02:53]}  Na6 {[%clk 0:03:03]} 8. O-O {[%clk 0:02:48]}  Ne8 {[%clk 0:03:03]} 9. Be3 {[%clk 0:02:45]}  c5 {[%clk 0:03:03]} 10. d5 {[%clk 0:02:43]}  d6 {[%clk 0:03:03]} 11. a3 {[%clk 0:02:41]}  Nac7 {[%clk 0:03:04]} 12. Rab1 {[%clk 0:02:37]}  e5 {[%clk 0:03:04]} 13. Ne1 {[%clk 0:02:30]}  f5 {[%clk 0:03:04]} 14. f3 {[%clk 0:02:30]}  f4 {[%clk 0:03:04]} 15. Bf2 {[%clk 0:02:31]}  g5 {[%clk 0:03:04]} 16. b4 {[%clk 0:02:31]}  Bc8 {[%clk 0:03:04]} 17. bxc5 {[%clk 0:02:32]}  bxc5 {[%clk 0:03:04]} 18. Kh1 {[%clk 0:02:20]}  h5 {[%clk 0:03:04]} 19. Qa4 {[%clk 0:02:13]}  Bd7 {[%clk 0:03:04]} 20. Qa5 {[%clk 0:02:13]}  Rf6 {[%clk 0:03:03]} 21. Nb5 {[%clk 0:02:05]}  Ne6 {[%clk 0:02:32]} 22. Qxd8 {[%clk 0:01:59]}  Nxd8 {[%clk 0:02:33]} 23. h3 {[%clk 0:01:44]}  Rg6 {[%clk 0:02:33]} 24. Nc3 {[%clk 0:01:39]}  g4 {[%clk 0:02:34]} 25. hxg4 {[%clk 0:01:32]}  hxg4 {[%clk 0:02:35]} 26. fxg4 {[%clk 0:01:33]}  Nf6 {[%clk 0:02:35]} 27. Bf3 {[%clk 0:01:16]}  Nxg4 {[%clk 0:02:35]} 28. Kg1 {[%clk 0:01:09]}  Nxf2 {[%clk 0:02:34]} 29. Kxf2 {[%clk 0:01:06]}  Bf6 {[%clk 0:02:35]} 30. Ke2 {[%clk 0:01:06]}  Kg7 {[%clk 0:02:34]} 31. Rh1 {[%clk 0:01:05]}  a6 {[%clk 0:02:34]} 32. Nd3 {[%clk 0:01:05]}  Ra7 {[%clk 0:02:32]} 33. Rb8 {[%clk 0:01:04]}  Nf7 {[%clk 0:02:32]} 34. Nf2 {[%clk 0:00:56]}  Bd8 {[%clk 0:02:31]} 35. Bh5 {[%clk 0:00:48]}  Rh6 {[%clk 0:02:30]} 36. Bxf7 {[%clk 0:00:48]}  Rxh1 {[%clk 0:02:29]} 37. Nxh1 {[%clk 0:00:48]}  Bc7 {[%clk 0:02:29]} 38. Rg8+ {[%clk 0:00:27]}  Kxf7 {[%clk 0:02:28]} 39. Rh8 {[%clk 0:00:28]}  Kg7 {[%clk 0:02:29]} 40. Rh4 {[%clk 0:00:20]}  Bd8 {[%clk 0:02:29]} 41. Rh2 {[%clk 0:00:21]}  Rb7 {[%clk 0:02:29]} 42. Nf2 {[%clk 0:00:16]}  Rb2+ {[%clk 0:02:29]} 43. Kf3 {[%clk 0:00:11]}  Rb3 {[%clk 0:02:29]} 0-1


[Site "https://www.chess.com"]

[Event "Titled Tuesday Blitz July 25 Late 2023"]
[White "Rasulov, Vugar"]
[Black "To, Nhat Minh"]
[WhiteFideId "13402390"]
[BlackFideId "729019"]
[WhiteElo "2872"]
[BlackElo "2543"]
[Result "1-0"]
[Round "4"]
[TimeControl "180+2"]
[Date "2023.07.25"]
[WhiteClock "0:00:26"]
[BlackClock "0:00:08"]
[Board "27"]

1. d4 {[%clk 0:03:00]}  Nf6 {[%clk 0:02:56]} 2. Bg5 {[%clk 0:03:01]}  d5 {[%clk 0:02:56]} 3. Nd2 {[%clk 0:03:01]}  c5 {[%clk 0:02:55]} 4. e3 {[%clk 0:02:58]}  cxd4 {[%clk 0:02:51]} 5. exd4 {[%clk 0:02:59]}  Qb6 {[%clk 0:02:51]} 6. Nb3 {[%clk 0:02:53]}  Nc6 {[%clk 0:02:51]} 7. c3 {[%clk 0:02:50]}  a5 {[%clk 0:02:44]} 8. a4 {[%clk 0:02:50]}  Bf5 {[%clk 0:02:24]} 9. Nf3 {[%clk 0:02:48]}  e6 {[%clk 0:02:24]} 10. Bb5 {[%clk 0:02:46]}  Ne4 {[%clk 0:02:23]} 11. Bf4 {[%clk 0:02:29]}  Nd6 {[%clk 0:02:22]} 12. Qe2 {[%clk 0:02:05]}  Be7 {[%clk 0:02:03]} 13. O-O {[%clk 0:02:05]}  O-O {[%clk 0:02:03]} 14. Nc5 {[%clk 0:02:01]}  Rfd8 {[%clk 0:01:52]} 15. Bxc6 {[%clk 0:01:48]}  Qxc6 {[%clk 0:01:38]} 16. Ne5 {[%clk 0:01:47]}  Qc8 {[%clk 0:01:37]} 17. g4 {[%clk 0:01:35]}  Bg6 {[%clk 0:01:32]} 18. Nxg6 {[%clk 0:01:32]}  hxg6 {[%clk 0:01:31]} 19. f3 {[%clk 0:01:27]}  b6 {[%clk 0:01:06]} 20. Nd3 {[%clk 0:01:27]}  b5 {[%clk 0:00:59]} 21. Ne5 {[%clk 0:01:17]}  Qb7 {[%clk 0:00:38]} 22. axb5 {[%clk 0:01:09]}  Qxb5 {[%clk 0:00:36]} 23. Qxb5 {[%clk 0:01:06]}  Nxb5 {[%clk 0:00:36]} 24. Nc6 {[%clk 0:01:01]}  Rd7 {[%clk 0:00:22]} 25. Ra4 {[%clk 0:00:54]}  Bd6 {[%clk 0:00:17]} 26. Bxd6 {[%clk 0:00:49]}  Nxd6 {[%clk 0:00:18]} 27. Rfa1 {[%clk 0:00:40]}  Nc4 {[%clk 0:00:16]} 28. b3 {[%clk 0:00:38]}  Nd2 {[%clk 0:00:16]} 29. b4 {[%clk 0:00:29]}  Nxf3+ {[%clk 0:00:07]} 30. Kg2 {[%clk 0:00:30]}  Ng5 {[%clk 0:00:08]} 31. Rxa5 {[%clk 0:00:26]}  Ne4 {[%clk 0:00:08]} 32. Rxa8+ {[%clk 0:00:26]} 1-0


[Site "https://www.chess.com"]

[Event "Titled Tuesday Blitz July 25 Late 2023"]
[White "Zhigalko, Sergei"]
[Black "ChessSG1"]
[WhiteFideId "13502956"]
[WhiteElo "2871"]
[BlackElo "2392"]
[Result "1-0"]
[Round "4"]
[TimeControl "180+2"]
[Date "2023.07.25"]
[WhiteClock "0:00:42"]
[BlackClock "0:00:19"]
[Board "28"]

1. e4 {[%clk 0:03:00]}  c5 {[%clk 0:02:59]} 2. Nf3 {[%clk 0:02:59]}  e6 {[%clk 0:02:59]} 3. c3 {[%clk 0:02:55]}  Nf6 {[%clk 0:02:58]} 4. e5 {[%clk 0:02:52]}  Nd5 {[%clk 0:02:58]} 5. Bc4 {[%clk 0:02:50]}  d6 {[%clk 0:02:57]} 6. d4 {[%clk 0:02:50]}  cxd4 {[%clk 0:02:57]} 7. cxd4 {[%clk 0:02:51]}  Be7 {[%clk 0:02:57]} 8. O-O {[%clk 0:02:51]}  O-O {[%clk 0:02:57]} 9. Bd2 {[%clk 0:02:44]}  b6 {[%clk 0:02:49]} 10. Qe2 {[%clk 0:02:44]}  Bb7 {[%clk 0:02:38]} 11. Nc3 {[%clk 0:02:43]}  dxe5 {[%clk 0:02:36]} 12. dxe5 {[%clk 0:02:43]}  Nxc3 {[%clk 0:02:35]} 13. Bxc3 {[%clk 0:02:44]}  Nd7 {[%clk 0:02:33]} 14. Rfe1 {[%clk 0:02:39]}  Qc7 {[%clk 0:02:25]} 15. Nd4 {[%clk 0:02:36]}  Rac8 {[%clk 0:01:41]} 16. Bd3 {[%clk 0:02:17]}  Rfd8 {[%clk 0:01:37]} 17. Nb5 {[%clk 0:01:59]}  Qb8 {[%clk 0:01:32]} 18. Rad1 {[%clk 0:01:21]}  Qa8 {[%clk 0:00:59]} 19. Qg4 {[%clk 0:01:14]}  Nf8 {[%clk 0:00:56]} 20. Nd6 {[%clk 0:01:02]}  Bxd6 {[%clk 0:00:41]} 21. exd6 {[%clk 0:01:02]}  Ng6 {[%clk 0:00:42]} 22. Qd4 {[%clk 0:00:47]}  e5 {[%clk 0:00:33]} 23. Rxe5 {[%clk 0:00:47]}  Bxg2 {[%clk 0:00:19]} 24. Re8+ {[%clk 0:00:44]}  Rxe8 {[%clk 0:00:19]} 25. Qxg7# {[%clk 0:00:42]} 1-0


[Site "https://www.chess.com"]

[Event "Titled Tuesday Blitz July 25 Late 2023"]
[White "Caruana, Fabiano"]
[Black "Cesar Maestre, Bernardo"]
[WhiteFideId "2020009"]
[BlackFideId "24542547"]
[WhiteElo "3125"]
[BlackElo "2526"]
[Result "0-1"]
[Round "4"]
[TimeControl "180+2"]
[Date "2023.07.25"]
[WhiteClock "0:00:05"]
[BlackClock "0:00:12"]
[Board "29"]

1. d4 {[%clk 0:03:00]}  d5 {[%clk 0:02:58]} 2. Nf3 {[%clk 0:03:01]}  Nf6 {[%clk 0:02:58]} 3. g3 {[%clk 0:03:01]}  c5 {[%clk 0:02:54]} 4. h4 {[%clk 0:03:02]}  cxd4 {[%clk 0:02:51]} 5. Bg2 {[%clk 0:03:03]}  e6 {[%clk 0:02:46]} 6. O-O {[%clk 0:03:01]}  Bc5 {[%clk 0:02:45]} 7. Nxd4 {[%clk 0:02:57]}  O-O {[%clk 0:02:41]} 8. Nb3 {[%clk 0:02:56]}  Bb6 {[%clk 0:02:36]} 9. Bf4 {[%clk 0:02:52]}  Nc6 {[%clk 0:02:35]} 10. N1d2 {[%clk 0:02:49]}  h6 {[%clk 0:02:31]} 11. Nf3 {[%clk 0:02:46]}  Nh5 {[%clk 0:02:23]} 12. Bd2 {[%clk 0:02:41]}  Nxg3 {[%clk 0:02:21]} 13. Re1 {[%clk 0:02:39]}  Ne4 {[%clk 0:02:19]} 14. e3 {[%clk 0:02:38]}  e5 {[%clk 0:02:09]} 15. Bc3 {[%clk 0:02:14]}  Nxc3 {[%clk 0:02:07]} 16. bxc3 {[%clk 0:02:15]}  Bg4 {[%clk 0:02:06]} 17. Qd2 {[%clk 0:02:06]}  e4 {[%clk 0:01:50]} 18. Nh2 {[%clk 0:02:05]}  Be6 {[%clk 0:01:49]} 19. f4 {[%clk 0:01:50]}  Qxh4 {[%clk 0:01:41]} 20. Qf2 {[%clk 0:01:45]}  Qxf2+ {[%clk 0:01:40]} 21. Kxf2 {[%clk 0:01:46]}  Rac8 {[%clk 0:01:40]} 22. c4 {[%clk 0:01:37]}  dxc4 {[%clk 0:01:36]} 23. Nd2 {[%clk 0:01:37]}  f5 {[%clk 0:01:36]} 24. Nhf1 {[%clk 0:01:37]}  Rfd8 {[%clk 0:01:34]} 25. Red1 {[%clk 0:01:36]}  Nb4 {[%clk 0:01:29]} 26. a3 {[%clk 0:01:24]}  Nxc2 {[%clk 0:01:20]} 27. Ra2 {[%clk 0:01:24]}  c3 {[%clk 0:01:21]} 28. Rxc2 {[%clk 0:01:24]}  cxd2 {[%clk 0:01:20]} 29. Rcxd2 {[%clk 0:01:24]}  Rxd2+ {[%clk 0:01:19]} 30. Rxd2 {[%clk 0:01:25]}  Rc3 {[%clk 0:01:17]} 31. a4 {[%clk 0:01:24]}  Ra3 {[%clk 0:01:08]} 32. Bh3 {[%clk 0:01:22]}  Rxa4 {[%clk 0:01:04]} 33. Ng3 {[%clk 0:01:22]}  g6 {[%clk 0:01:03]} 34. Ne2 {[%clk 0:01:22]}  Ra2 {[%clk 0:00:59]} 35. Rd6 {[%clk 0:01:19]}  Bc4 {[%clk 0:00:57]} 36. Bf1 {[%clk 0:01:16]}  Kf7 {[%clk 0:00:41]} 37. Rd7+ {[%clk 0:01:16]}  Ke6 {[%clk 0:00:40]} 38. Rxb7 {[%clk 0:01:17]}  g5 {[%clk 0:00:32]} 39. fxg5 {[%clk 0:01:15]}  hxg5 {[%clk 0:00:30]} 40. Ke1 {[%clk 0:01:15]}  Ra1+ {[%clk 0:00:24]} 41. Kf2 {[%clk 0:01:15]}  Ra2 {[%clk 0:00:18]} 42. Ke1 {[%clk 0:01:14]}  Ba5+ {[%clk 0:00:18]} 43. Kf2 {[%clk 0:01:11]}  f4 {[%clk 0:00:19]} 44. Rxa7 {[%clk 0:00:23]}  Bxe2 {[%clk 0:00:13]} 45. exf4 {[%clk 0:00:14]}  Bb6+ {[%clk 0:00:11]} 46. Kg3 {[%clk 0:00:05]}  Bxa7 {[%clk 0:00:12]} 0-1


[Site "https://www.chess.com"]

[Event "Titled Tuesday Blitz July 25 Late 2023"]
[White "Tabatabaei, M. Amin"]
[Black "Horobetz, Graham"]
[WhiteFideId "12521213"]
[BlackFideId "2047322"]
[WhiteElo "3024"]
[BlackElo "2561"]
[Result "1-0"]
[Round "4"]
[TimeControl "180+2"]
[Date "2023.07.25"]
[WhiteClock "0:02:47"]
[BlackClock "0:00:00"]
[Board "32"]

1. h4 {[%clk 0:02:54]}  e5 {[%clk 0:02:56]} 2. h5 {[%clk 0:02:55]}  h6 {[%clk 0:02:55]} 3. d4 {[%clk 0:02:55]}  exd4 {[%clk 0:02:55]} 4. Qxd4 {[%clk 0:02:56]}  Nc6 {[%clk 0:02:54]} 5. Qa4 {[%clk 0:02:55]}  d5 {[%clk 0:02:52]} 6. c3 {[%clk 0:02:55]}  Bc5 {[%clk 0:02:47]} 7. Nf3 {[%clk 0:02:55]}  Nf6 {[%clk 0:02:46]} 8. Bf4 {[%clk 0:02:54]}  Ne4 {[%clk 0:02:31]} 9. e3 {[%clk 0:02:54]}  Bd7 {[%clk 0:02:24]} 10. Qc2 {[%clk 0:02:51]}  O-O {[%clk 0:02:17]} 11. Nbd2 {[%clk 0:02:51]}  Re8 {[%clk 0:02:02]} 12. Bd3 {[%clk 0:02:49]}  Nxd2 {[%clk 0:01:40]} 13. Qxd2 {[%clk 0:02:50]}  Qf6 {[%clk 0:01:37]} 14. O-O-O {[%clk 0:02:47]}  Bb6 {[%clk 0:01:29]} 15. Rdg1 {[%clk 0:02:46]}  Bg4 {[%clk 0:01:10]} 16. Nh2 {[%clk 0:02:45]}  Bf5 {[%clk 0:00:58]} 17. g4 {[%clk 0:02:46]}  Be4 {[%clk 0:00:50]} 18. g5 {[%clk 0:02:46]}  hxg5 {[%clk 0:00:48]} 19. Bxg5 {[%clk 0:02:47]}  Qe6 {[%clk 0:00:44]} 20. Bxe4 {[%clk 0:02:46]}  dxe4 {[%clk 0:00:44]} 21. Ng4 {[%clk 0:02:44]}  Qxa2 {[%clk 0:00:27]} 22. Nf6+ {[%clk 0:02:44]}  gxf6 {[%clk 0:00:25]} 23. Bxf6+ {[%clk 0:02:45]}  Kf8 {[%clk 0:00:23]} 24. h6 {[%clk 0:02:46]}  Red8 {[%clk 0:00:14]} 25. Bxd8 {[%clk 0:02:46]}  Rxd8 {[%clk 0:00:14]} 26. Qxd8+ {[%clk 0:02:47]}  Nxd8 {[%clk 0:00:15]} 27. h7 {[%clk 0:02:47]}  Qa1+ {[%clk 0:00:11]} 28. Kc2 {[%clk 0:02:48]}  Qa4+ {[%clk 0:00:11]} 29. Kb1 {[%clk 0:02:48]}  Ne6 {[%clk 0:00:07]} 30. h8=Q+ {[%clk 0:02:47]}  Ke7 {[%clk 0:00:08]} 31. Qh4+ {[%clk 0:02:46]}  Kd7 {[%clk 0:00:06]} 32. Rd1+ {[%clk 0:02:46]}  Kc6 {[%clk 0:00:07]} 33. Qe7 {[%clk 0:02:47]}  Qc4 {[%clk 0:00:04]} 34. Qd7+ {[%clk 0:02:46]}  Kc5 {[%clk 0:00:00]} 35. Rh5+ {[%clk 0:02:47]} 1-0


[Site "https://www.chess.com"]

[Event "Titled Tuesday Blitz July 25 Late 2023"]
[White "Xiong, Jeffery"]
[Black "Richter, Paul"]
[WhiteFideId "2047640"]
[BlackFideId "2046350"]
[WhiteElo "2966"]
[BlackElo "2556"]
[Result "1-0"]
[Round "4"]
[TimeControl "180+2"]
[Date "2023.07.25"]
[WhiteClock "0:01:50"]
[BlackClock "0:00:10"]
[Board "36"]

1. e4 {[%clk 0:03:00]}  c5 {[%clk 0:02:59]} 2. Nf3 {[%clk 0:03:01]}  d6 {[%clk 0:02:59]} 3. Bb5+ {[%clk 0:03:01]}  Nc6 {[%clk 0:02:59]} 4. O-O {[%clk 0:03:00]}  Bd7 {[%clk 0:02:59]} 5. Re1 {[%clk 0:03:00]}  Nf6 {[%clk 0:03:00]} 6. h3 {[%clk 0:02:59]}  Ne5 {[%clk 0:02:53]} 7. Bf1 {[%clk 0:02:53]}  Nxf3+ {[%clk 0:02:47]} 8. Qxf3 {[%clk 0:02:54]}  Bc6 {[%clk 0:02:47]} 9. c3 {[%clk 0:02:49]}  e6 {[%clk 0:02:33]} 10. d4 {[%clk 0:02:49]}  cxd4 {[%clk 0:02:31]} 11. cxd4 {[%clk 0:02:50]}  d5 {[%clk 0:02:31]} 12. e5 {[%clk 0:02:51]}  Ng8 {[%clk 0:02:10]} 13. Nc3 {[%clk 0:02:48]}  Ne7 {[%clk 0:02:10]} 14. Bd3 {[%clk 0:02:48]}  Ng6 {[%clk 0:02:03]} 15. g3 {[%clk 0:02:45]}  Qb6 {[%clk 0:01:49]} 16. Qe3 {[%clk 0:02:26]}  Bb4 {[%clk 0:01:38]} 17. Bd2 {[%clk 0:02:25]}  O-O {[%clk 0:01:32]} 18. a3 {[%clk 0:02:26]}  Be7 {[%clk 0:01:22]} 19. h4 {[%clk 0:02:25]}  Rfc8 {[%clk 0:01:20]} 20. h5 {[%clk 0:02:20]}  Nf8 {[%clk 0:01:18]} 21. h6 {[%clk 0:02:20]}  g6 {[%clk 0:01:15]} 22. b4 {[%clk 0:02:21]}  Be8 {[%clk 0:01:00]} 23. Reb1 {[%clk 0:02:14]}  Rc7 {[%clk 0:00:52]} 24. b5 {[%clk 0:02:11]}  Rcc8 {[%clk 0:00:45]} 25. a4 {[%clk 0:02:09]}  Qd8 {[%clk 0:00:43]} 26. a5 {[%clk 0:02:06]}  b6 {[%clk 0:00:38]} 27. Ne2 {[%clk 0:01:54]}  Rc7 {[%clk 0:00:33]} 28. Kg2 {[%clk 0:01:55]}  Rcc8 {[%clk 0:00:26]} 29. Ng1 {[%clk 0:01:55]}  Rc7 {[%clk 0:00:24]} 30. Nf3 {[%clk 0:01:55]}  Rcc8 {[%clk 0:00:22]} 31. Qf4 {[%clk 0:01:55]}  Rab8 {[%clk 0:00:18]} 32. Nh2 {[%clk 0:01:55]}  bxa5 {[%clk 0:00:18]} 33. Bxa5 {[%clk 0:01:55]}  Qd7 {[%clk 0:00:18]} 34. Ng4 {[%clk 0:01:56]}  f5 {[%clk 0:00:16]} 35. exf6 {[%clk 0:01:56]}  Bd6 {[%clk 0:00:17]} 36. f7+ {[%clk 0:01:51]}  Bxf7 {[%clk 0:00:10]} 37. Nf6+ {[%clk 0:01:51]}  Kh8 {[%clk 0:00:11]} 38. Nxd7 {[%clk 0:01:52]}  Bxf4 {[%clk 0:00:10]} 39. Nxf8 {[%clk 0:01:50]} 1-0


[Site "https://www.chess.com"]